bitfinex/quotes_SOLUSD_20240926
["timestamp","ask_amount","ask_price","bid_price","bid_amount"]
[1727388404770,1.92e-05,156.14,156.13,29.19638917]
[1727388405142,1.92e-05,156.14,156.13,25.03878359]
[1727388405367,1.92e-05,156.14,156.13,29.19748912]
[1727388407250,1.92e-05,156.14,156.13,25.03878359]
[1727388411655,1.92e-05,156.14,156.13,6.53039]
[1727388413682,1.92e-05,156.14,156.13,6.4049]
[1727388417375,1.92e-05,156.14,156.13,6.53039]
[1727388418384,1.92e-05,156.14,156.13,7.81087991]
[1727388419084,1.92e-05,156.14,156.13,6.53039]
[1727388429593,1.92e-05,156.14,156.13,7.81084651]
[1727388430400,0.3303234,156.19,156.18,18.35591327]
[1727388430572,0.3303234,156.19,156.18,19.63587081]
[1727388431592,0.3303234,156.19,156.18,26.96196467]
[1727388432368,0.3303234,156.19,156.18,34.9065514]
[1727388433876,0.3303234,156.19,156.18,23.07892813]
[1727388434077,0.3303234,156.19,156.18,13.84496067]
[1727388435476,0.3303234,156.19,156.18,6.52829]
[1727388435683,0.3303234,156.19,156.18,13.71401365]
[1727388436791,0.3303234,156.19,156.18,14.99417139]
[1727388437000,0.3303234,156.19,156.18,13.83950365]
[1727388437494,0.3303234,156.19,156.18,13.71401365]
[1727388438799,0.3303234,156.19,156.18,13.71214694]
[1727388440597,0.3303234,156.19,156.18,14.99244332]
[1727388440979,0.3303234,156.19,156.18,7.68309638]
[1727388441277,0.3303234,156.19,156.18,14.99339329]
[1727388442685,0.3303234,156.19,156.18,13.71309691]
[1727388443004,16.4768234,156.19,156.18,13.71309691]
[1727388443201,16.4768234,156.19,156.18,6.4028]
[1727388447299,0.3303234,156.19,156.18,7.6831976]
[1727388447706,0.3303234,156.19,156.18,6.4028]
[1727388448392,0.3303234,156.19,156.18,7.68299687]
[1727388450993,0.3303234,156.19,156.18,6.4028]
[1727388451783,0.3303234,156.19,156.18,7.68300195]
[1727388452389,0.3303234,156.19,156.18,6.4028]
[1727388453693,0.3303234,156.19,156.17,22.4109]
[1727388454899,0.3303234,156.19,156.15,6.4037]
[1727388454900,16.5404,156.17,156.15,6.4037]
[1727388455219,16.5404,156.17,156.14,22.4154]
[1727388457394,16.5404,156.17,156.12,6.4049]
[1727388457711,16.5404,156.17,156.11,16.0143]
[1727388457906,16.5404,156.17,156.13,6.4047]
[1727388458204,16.5404,156.17,156.15,6.404]
[1727388460517,16.5404,156.17,156.13,16.0112]
[1727388460518,16.5404,156.17,156.16,6.4036]
[1727388463387,6.2312,156.18,156.14,1.2807354]
[1727388463593,6.2312,156.18,156.17,6.4032]
[1727388463788,6.2312,156.18,156.17,7.68375327]
[1727388464599,6.2312,156.18,156.17,6.4032]
[1727388465513,6.2312,156.18,156.16,16.0087]
[1727388466713,6.2312,156.18,156.16,22.4122]
[1727388471517,6.2312,156.18,156.16,16.0087]
[1727388472318,12.6342,156.18,156.13,22.4169]
[1727388472616,12.6342,156.18,156.14,4.57290417]
[1727388473337,12.6342,156.18,156.13,22.4169]
[1727388475039,15.4879,156.17,156.1,16.0149]
[1727388475319,15.4879,156.17,156.1,22.4209]
[1727388475320,6.404,156.15,156.1,22.4209]
[1727388477128,12.75549,156.16,156.11,6.4056]
[1727388477328,6.4041,156.15,156.1,22.4209]
[1727388483434,6.2263,156.16,156.1,16.0149]
[1727388483757,6.2263,156.16,156.07,32.0356]
[1727388483758,6.2263,156.16,156.13,6.4048]
[1727388490320,6.2263,156.16,156.12,22.4177]
[1727388490526,6.2263,156.16,156.09,16.016]
[1727388490744,6.405,156.13,156.1,4.56665701]
[1727388490927,22.346,156.12,156.1,4.56665701]
[1727388491139,22.346,156.12,156.08,6.4068]
[1727388491447,22.346,156.12,156.08,10.97345701]
[1727388491653,22.346,156.12,156.08,6.4068]
[1727388492726,22.346,156.12,156.07,10.97385701]
[1727388493529,15.9407,156.12,156.07,5.84807778]
[1727388493742,15.9407,156.12,156.08,6.4069]
[1727388494136,15.9407,156.12,156.07,4.56665701]
[1727388494340,6.2598,156.11,156.03,1.11601143]
[1727388494648,6.4065,156.1,156.05,6.4081]
[1727388496121,6.2598,156.11,156.04,1.28159869]
[1727388496447,6.2598,156.11,156.06,6.4076]
[1727388496448,12.6656,156.11,156.06,6.4076]
[1727388498354,6.2598,156.11,156.07,16.0175]
[1727388498642,6.2598,156.11,156.07,22.4248]
[1727388507555,12.6655,156.11,156.07,16.0175]
[1727388510440,6.4061,156.1,156.06,6.4077]
[1727388510853,6.4061,156.1,156.05,6.4081]
[1727388518272,6.4061,156.1,156.06,6.4077]
[1727388518441,12.6656,156.11,156.05,5.85820794]
[1727388518766,12.6656,156.11,156.07,6.4073]
[1727388522471,12.6656,156.11,156.06,6.4077]
[1727388522670,12.6656,156.11,156.06,10.98483444]
[1727388522854,12.6656,156.11,156.06,6.4077]
[1727388523052,12.6656,156.11,156.06,10.98483444]
[1727388523252,12.6656,156.11,156.06,6.4077]
[1727388523568,12.6656,156.11,156.06,10.98483444]
[1727388523755,12.6656,156.11,156.06,6.4077]
[1727388524063,0.12549,156.1,156.06,4.57713444]
[1727388524270,0.12549,156.1,156.04,16.0211]
[1727388525371,6.407,156.08,156.04,22.4295]
[1727388526171,6.4066,156.09,156.04,22.4295]
[1727388528855,6.4066,156.09,156.05,4.58003416]
[1727388529379,6.4066,156.09,156.04,22.4295]
[1727388530061,12.6656,156.11,156.06,6.4076]
[1727388530263,6.2598,156.11,156.05,1.28169951]
[1727388530463,6.2598,156.11,156.1,6.4061]
[1727388530664,6.2598,156.11,156.09,6.4062]
[1727388531875,12.6912,156.15,156.1,6.4061]
[1727388534461,12.6912,156.15,156.08,16.0167]
[1727388534462,6.4046,156.14,156.09,6.4065]
[1727388536873,6.2871,156.15,156.08,16.0167]
[1727388537181,6.405,156.13,156.08,22.4235]
[1727388537376,0.12549,156.14,156.08,22.4235]
[1727388537579,6.4053,156.12,156.08,22.4235]
[1727388537773,6.4053,156.12,156.08,16.0167]
[1727388538179,6.2871,156.15,156.08,16.0167]
[1727388538377,6.2871,156.15,156.09,6.4062]
[1727388538582,6.4048,156.14,156.09,6.4062]
[1727388538790,6.4049,156.13,156.09,6.4062]
[1727388541682,12.6912,156.15,156.1,6.4061]
[1727388543587,6.4045,156.14,156.1,6.4061]
[1727388544495,6.4045,156.14,156.09,6.4065]
[1727388545664,6.4032,156.18,156.13,6.4049]
[1727388545866,6.4033,156.17,156.12,22.4179]
[1727388549376,6.4033,156.17,156.13,6.4048]
[1727388550490,0.3303234,156.19,156.13,6.4048]
[1727388550790,6.4029,156.18,156.13,6.4048]
[1727388552092,6.4029,156.18,156.14,6.4044]
[1727388552295,6.7328234,156.19,156.14,6.4044]
[1727388552591,0.3303234,156.19,156.18,6.4028]
[1727388553101,0.3303234,156.19,156.18,7.68326567]
[1727388553302,0.3303234,156.19,156.18,7.68323004]
[1727388553801,0.3303234,156.19,156.18,6.4028]
[1727388554584,0.3303234,156.19,156.17,16.0079]
[1727388554899,0.3303234,156.19,156.17,22.411]
[1727388557191,0.3303234,156.19,156.18,7.6832853]
[1727388558080,0.1142549,156.21,156.19,22.09429]
[1727388558280,0.1142549,156.21,156.2,6.402]
[1727388558692,0.1142549,156.21,156.2,7.68212429]
[1727388560493,0.1142549,156.21,156.2,7.80761429]
[1727388561301,0.1142549,156.21,156.2,6.52749]
[1727388561888,0.1142549,156.21,156.2,7.80745875]
[1727388564492,0.1142549,156.21,156.2,6.52749]
[1727388565205,0.1142549,156.21,156.2,7.80745941]
[1727388566689,0.1142549,156.21,156.2,19.64548153]
[1727388566890,0.1142549,156.21,156.2,6.402]
[1727388588424,0.3303234,156.28,156.21,6.4013]
[1727388589529,6.3997,156.26,156.21,6.4013]
[1727388591726,6.4004,156.24,156.2,16.0043]
[1727388592110,22.7049,156.25,156.2,22.4062]
[1727388595024,22.7049,156.25,156.21,6.4015]
[1727388596042,16.3049,156.25,156.21,6.4015]
[1727388602045,6.4004,156.24,156.2,22.4063]
[1727388602920,16.3049,156.25,156.2,16.0043]
[1727388603121,16.3049,156.25,156.21,10.9715378]
[1727388603338,16.3049,156.25,156.21,6.4014]
[1727388612046,6.3992,156.27,156.23,6.4007]
[1727388612247,6.7291234,156.28,156.24,4.56246075]
[1727388612457,6.7291234,156.28,156.23,6.4007]
[1727388612628,6.7291234,156.28,156.24,4.56062214]
[1727388612830,6.7291234,156.28,156.23,6.4007]
[1727388613032,6.7291234,156.28,156.24,4.56012173]
[1727388613344,6.7291234,156.28,156.23,6.4007]
[1727388613550,6.7291234,156.28,156.24,4.5598581]
[1727388613736,6.7291234,156.28,156.23,6.4007]
[1727388613936,6.7291234,156.28,156.24,4.55872383]
[1727388614135,6.7291234,156.28,156.23,6.4007]
[1727388614452,6.7291234,156.28,156.24,4.55756964]
[1727388614651,6.7291234,156.28,156.23,6.4007]
[1727388614847,6.7291234,156.28,156.24,4.55666972]
[1727388615046,6.7291234,156.28,156.23,6.4007]
[1727388615233,6.7291234,156.28,156.24,4.55663629]
[1727388615435,6.7291234,156.28,156.23,6.4007]
[1727388615628,6.7291234,156.28,156.24,4.55591459]
[1727388615830,0.3303234,156.28,156.26,6.3995]
[1727388616030,0.3303234,156.28,156.25,6.3999]
[1727388619657,0.3303234,156.28,156.24,16.0003]
[1727388619658,0.3303234,156.28,156.24,22.4006]
[1727388619865,0.3303234,156.28,156.25,4.54969529]
[1727388620163,0.3303234,156.28,156.24,22.4006]
[1727388622560,6.3991,156.27,156.23,6.4007]
[1727388623654,6.7290234,156.28,156.23,6.4007]
[1727388624043,6.7290234,156.28,156.24,6.4003]
[1727388632974,0.3303234,156.28,156.22,1.28003343]
[1727388633186,0.3303234,156.28,156.27,6.3991]
[1727388648670,0.3303234,156.28,156.25,22.3989]
[1727388649170,0.3303234,156.28,156.25,15.999]
[1727388649369,0.3303234,156.28,156.26,6.3994]
[1727388656000,0.3303234,156.28,156.27,6.3991]
[1727388672006,0.3303234,156.28,156.26,6.3994]
[1727388672311,0.3303234,156.28,156.27,6.3991]
[1727388685618,0.3303234,156.28,156.27,7.67860448]
[1727388689627,0.3303234,156.28,156.25,15.999]
[1727388689829,0.3303234,156.28,156.27,6.3991]
[1727388692598,0.3303234,156.28,156.27,10.95315423]
[1727388697532,0.3303234,156.28,156.27,6.3991]
[1727388697701,0.3303234,156.28,156.27,10.95010069]
[1727388701134,0.3303234,156.28,156.27,10.9503344]
[1727388702028,0.3303234,156.28,156.27,11.0758244]
[1727388703240,0.3303234,156.28,156.27,12.35514819]
[1727388704037,0.3303234,156.28,156.27,10.9503344]
[1727388704417,0.3303234,156.28,156.27,11.01701171]
[1727388707738,0.3303234,156.28,156.27,6.3991]
[1727388707948,0.3303234,156.28,156.27,11.01647857]
[1727388711227,0.3303234,156.28,156.27,6.3991]
[1727388711422,0.3303234,156.28,156.27,11.0154753]
[1727388718249,0.3303234,156.28,156.27,6.3991]
[1727388718551,0.3303234,156.28,156.27,11.01937522]
[1727388719256,0.3303234,156.28,156.27,4.62027522]
[1727388720137,0.3303234,156.28,156.27,11.01937522]
[1727388721531,0.3303234,156.28,156.27,11.02191998]
[1727388724956,0.3303234,156.28,156.27,11.01896017]
[1727388725370,0.3303234,156.28,156.27,22.85698229]
[1727388725528,0.3303234,156.28,156.27,22.98247229]
[1727388727050,0.1142549,156.3,156.29,6.52379]
[1727388727259,0.1142549,156.3,156.29,22.98167229]
[1727388728453,0.1142549,156.3,156.29,24.2606926]
[1727388728632,0.1142549,156.3,156.29,11.14365017]
[1727388733965,0.1142549,156.3,156.29,12.42276258]
[1727388734354,0.1142549,156.3,156.29,11.14365017]
[1727388735363,0.1142549,156.3,156.29,6.52379]
[1727388735867,0.1142549,156.3,156.29,11.12631392]
[1727388736248,0.1142549,156.3,156.29,12.40535453]
[1727388736649,0.1142549,156.3,156.29,11.12631392]
[1727388738357,5.49e-05,156.3,156.29,18.78319432]
[1727388738560,5.49e-05,156.3,156.29,14.1806704]
[1727388738743,5.49e-05,156.3,156.29,15.45955979]
[1727388738947,5.49e-05,156.3,156.29,30.61597164]
[1727388739171,5.49e-05,156.3,156.29,22.95909124]
[1727388740765,5.49e-05,156.3,156.29,10.99557912]
[1727388741851,5.49e-05,156.3,156.29,10.99533821]
[1727388742050,5.49e-05,156.3,156.29,12.39988947]
[1727388742258,5.49e-05,156.3,156.29,20.05676987]
[1727388743455,0.2523192,156.32,156.31,6.3975]
[1727388743768,0.2523192,156.32,156.31,24.23674123]
[1727388744952,0.2523192,156.32,156.31,22.95801591]
[1727388745154,0.2523192,156.32,156.31,18.36101212]
[1727388745457,0.2523192,156.32,156.31,22.95348191]
[1727388746160,0.2523192,156.32,156.31,24.23221122]
[1727388748478,0.2523192,156.32,156.31,18.36101212]
[1727388748659,0.2523192,156.32,156.31,22.94976894]
[1727388748865,0.2523192,156.32,156.31,10.98625682]
[1727388749063,0.2523192,156.32,156.31,6.3975]
[1727388749585,0.2523192,156.32,156.31,10.98625682]
[1727388749777,0.2523192,156.32,156.31,6.3975]
[1727388750151,0.2523192,156.32,156.31,11.11174682]
[1727388750358,0.2523192,156.32,156.31,6.52299]
[1727388750857,0.2523192,156.32,156.31,11.11174682]
[1727388751057,0.2523192,156.32,156.31,6.52299]
[1727388751495,0.2523192,156.32,156.31,11.11174682]
[1727388751797,0.2523192,156.32,156.31,6.52299]
[1727388751952,0.2523192,156.32,156.31,11.11251041]
[1727388752459,0.2523192,156.32,156.31,6.3975]
[1727388752778,0.2523192,156.32,156.31,10.98692601]
[1727388752971,0.2523192,156.32,156.31,6.3975]
[1727388753377,0.2523192,156.32,156.31,10.98692601]
[1727388753581,0.2523192,156.32,156.31,6.3975]
[1727388753958,0.2523192,156.32,156.31,10.98692601]
[1727388754268,0.2523192,156.32,156.31,6.3975]
[1727388754663,0.2523192,156.32,156.31,10.98692601]
[1727388754864,0.2523192,156.32,156.31,6.3975]
[1727388755762,0.2523192,156.32,156.31,10.98746794]
[1727388755967,0.2523192,156.32,156.31,6.3975]
[1727388756488,0.2523192,156.32,156.31,12.26655729]
[1727388758607,0.2523192,156.32,156.31,19.92343769]
[1727388758788,0.2523192,156.32,156.31,20.04892769]
[1727388761186,0.2523192,156.32,156.31,24.23006941]
[1727388763389,0.2523192,156.32,156.31,22.95098006]
[1727388763986,0.2523192,156.32,156.31,10.98746794]
[1727388765073,21.3609192,156.32,156.31,10.99293164]
[1727388765279,21.3609192,156.32,156.31,4.59543164]
[1727388765888,21.3609192,156.32,156.3,15.9943]
[1727388766102,21.3609192,156.32,156.29,6.3983]
[1727388766295,21.3609192,156.32,156.28,4.59890722]
[1727388766783,6.3976,156.31,156.28,4.59890722]
[1727388767387,6.3976,156.31,156.27,15.9978]
[1727388768088,6.3976,156.31,156.28,4.60008354]
[1727388768286,21.1086,156.29,156.24,6.4]
[1727388768468,21.1086,156.29,156.25,4.60087965]
[1727388768673,21.1086,156.29,156.26,4.60087965]
[1727388768894,21.1086,156.29,156.27,4.60087965]
[1727388769198,21.1086,156.29,156.25,6.3998]
[1727388769401,21.1086,156.29,156.26,4.60087965]
[1727388769695,21.1086,156.29,156.27,4.60087965]
[1727388769899,21.1086,156.29,156.28,10.99957965]
[1727388770093,21.1086,156.29,156.28,6.3987]
[1727388770278,21.1086,156.29,156.28,4.60087965]
[1727388771373,21.1086,156.29,156.27,6.3991]
[1727388771575,21.1086,156.29,156.28,4.60181299]
[1727388771793,21.1086,156.29,156.27,6.3991]
[1727388771794,21.1086,156.29,156.26,15.9987]
[1727388773473,21.1086,156.29,156.26,22.3982]
[1727388774076,21.1086,156.29,156.26,15.9987]
[1727388774307,21.1086,156.29,156.24,6.4]
[1727388774476,21.1086,156.29,156.25,6.3999]
[1727388776305,27.507,156.29,156.24,10.99787529]
[1727388778001,27.507,156.29,156.24,6.4003]
[1727388778202,27.507,156.29,156.25,6.3999]
[1727388781797,6.3988,156.28,156.23,22.4027]
[1727388782009,6.3992,156.27,156.23,16.002]
[1727388782507,6.3992,156.27,156.18,1.11483086]
[1727388782508,15.6709,156.24,156.21,6.4016]
[1727388782716,15.6709,156.24,156.19,22.4071]
[1727388783315,22.0714,156.24,156.19,22.4071]
[1727388784593,6.4012,156.22,156.16,16.2611192]
[1727388784810,6.4012,156.22,156.17,6.4032]
[1727388785483,16.0556,156.2,156.16,16.2611192]
[1727388785690,22.4577,156.2,156.16,16.2611192]
[1727388786984,22.4577,156.2,156.16,0.2523192]
[1727388788086,0.12549,156.19,156.16,0.2523192]
[1727388788285,22.58429,156.17,156.16,0.2523192]
[1727388790611,16.0556,156.17,156.16,0.2523192]
[1727388798609,6.1577,156.18,156.16,6.6559192]
[1727388798800,16.0556,156.21,156.17,6.4032]
[1727388801022,16.0556,156.21,156.19,6.4024]
[1727388802908,16.0556,156.21,156.17,16.0073]
[1727388803108,22.4572,156.21,156.17,22.4104]
[1727388803639,22.4572,156.21,156.17,16.0073]
[1727388804121,22.4572,156.21,156.16,6.6559192]
[1727388804423,16.0556,156.21,156.16,6.6559192]
[1727388804713,6.402,156.2,156.16,6.6559192]
[1727388805016,6.402,156.2,156.16,0.2523192]
[1727388807321,6.402,156.2,156.16,6.6559192]
[1727388808912,22.4573,156.21,156.16,6.6559192]
[1727388811429,16.0556,156.21,156.16,6.6559192]
[1727388811731,6.402,156.2,156.16,6.6559192]
[1727388813821,22.4572,156.21,156.16,6.6559192]
[1727388814934,16.0556,156.21,156.19,6.4023]
[1727388821422,6.1577,156.22,156.19,6.4023]
[1727388824340,12.559,156.22,156.17,6.4031]
[1727388824516,6.4021,156.2,156.16,0.2523192]
[1727388824835,6.4024,156.19,156.16,0.2523192]
[1727388826164,12.5592,156.22,156.17,6.4029]
[1727388826340,6.1577,156.22,156.19,6.4023]
[1727388826640,6.1577,156.22,156.18,6.4028]
[1727388826832,6.1577,156.22,156.17,16.0074]
[1727388826833,6.4017,156.21,156.17,16.0074]
[1727388827040,6.4024,156.19,156.16,0.2523192]
[1727388827555,6.4028,156.18,156.16,0.2523192]
[1727388827726,6.4032,156.17,156.16,0.2523192]
[1727388828530,6.52869,156.17,156.16,0.2523192]
[1727388829132,6.52869,156.17,156.11,0.2523192]
[1727388829133,6.4045,156.14,156.11,0.2523192]
[1727388830432,6.4053,156.12,156.11,0.2523192]
[1727388830751,6.53039,156.13,156.11,0.2523192]
[1727388831046,0.12549,156.13,156.11,0.2523192]
[1727388833541,0.12549,156.13,156.07,0.3665741]
[1727388833542,6.4057,156.12,156.07,0.3665741]
[1727388833750,0.12549,156.11,156.07,0.3665741]
[1727388833949,0.12549,156.1,156.07,0.3665741]
[1727388834448,6.53169,156.1,156.07,0.3665741]
[1727388835452,0.12549,156.1,156.07,0.3665741]
[1727388837658,6.30929,156.1,156.07,0.3665741]
[1727388839235,6.4069,156.08,156.07,0.3665741]
[1727388839538,22.8768,156.08,156.07,0.3665741]
[1727388840251,23.00229,156.08,156.07,0.3665741]
[1727388842957,6.4066,156.09,156.07,0.3665741]
[1727388843164,6.1838,156.1,156.07,0.3665741]
[1727388843338,12.59,156.1,156.07,0.3665741]
[1727388843870,6.4068,156.09,156.07,0.3665741]
[1727388844167,12.5899,156.1,156.07,0.3665741]
[1727388846264,16.4699,156.12,156.07,0.3665741]
[1727388846440,6.4049,156.13,156.08,6.4068]
[1727388846641,6.0695,156.14,156.07,0.3665741]
[1727388846856,6.4065,156.09,156.07,0.3665741]
[1727388847538,6.4062,156.1,156.07,0.3665741]
[1727388848364,6.4065,156.09,156.07,0.3665741]
[1727388851162,6.4061,156.11,156.07,0.3665741]
[1727388851942,6.4062,156.1,156.07,0.3665741]
[1727388860589,0.12549,156.12,156.07,0.3665741]
[1727388860761,6.53239,156.08,156.07,0.3665741]
[1727388868363,6.53239,156.08,156.05,0.0780042]
[1727388868364,6.53319,156.06,156.05,0.0780042]
[1727388869058,0.12549,156.05,156.02,0.2523192]
[1727388869263,6.4087,156.04,156.02,0.2523192]
[1727388869664,6.53449,156.03,156.02,0.2523192]
[1727388872287,6.53449,156.03,155.96,6.8563783]
[1727388872288,6.4102,156.01,155.96,6.8563783]
[1727388872589,0.12549,156.0,155.96,6.8563783]
[1727388872789,0.12549,156.0,155.96,0.4445783]
[1727388872969,6.53569,156.0,155.96,0.4445783]
[1727388873776,6.4107,155.99,155.96,0.4445783]
[1727388873966,6.56509,156.0,155.96,0.4445783]
[1727388873967,6.4111,155.98,155.96,0.4445783]
[1727388874891,6.53689,155.97,155.96,0.4445783]
[1727388876889,6.4127,155.94,155.93,0.2523192]
[1727388877875,6.53769,155.96,155.93,0.2523192]
[1727388881097,0.12549,155.96,155.93,0.2523192]
[1727388881293,6.53709,155.97,155.93,0.2523192]
[1727388881482,0.12549,155.95,155.93,0.2523192]
[1727388883176,6.4396,156.0,155.93,0.2523192]
[1727388883393,6.4112,155.98,155.93,0.2523192]
[1727388883594,6.4112,155.98,155.93,6.6653192]
[1727388884480,0.12549,155.97,155.93,6.6653192]
[1727388885793,6.4112,155.98,155.93,6.6653192]
[1727388885794,6.4106,155.99,155.94,6.4126]
[1727388886092,0.12549,155.98,155.94,6.4126]
[1727388886971,0.12549,156.0,155.97,6.4114]
[1727388887178,6.4096,156.02,155.97,6.4114]
[1727388888600,22.6468,156.05,155.95,1.28230445]
[1727388888895,6.409,156.03,155.99,6.4106]
[1727388889277,6.4097,156.02,155.97,22.4388]
[1727388889478,6.4099,156.01,155.97,22.4388]
[1727388891888,6.53489,156.02,155.97,22.4388]
[1727388894395,6.53489,156.02,155.98,6.411]
[1727388898509,0.12549,156.02,155.98,6.411]
[1727388902123,6.4091,156.03,155.99,6.4106]
[1727388902322,16.019,156.07,155.99,6.4106]
[1727388902323,23.4170192,156.09,155.99,16.026]
[1727388902501,23.4170192,156.09,156.02,6.4092]
[1727388902708,23.4170192,156.09,155.99,16.026]
[1727388902914,6.4077,156.07,156.02,6.4093]
[1727388903099,6.4078,156.06,156.02,6.4093]
[1727388903299,6.4078,156.06,156.0,16.0279]
[1727388903618,6.4078,156.06,156.01,6.4097]
[1727388903999,0.12549,156.05,156.01,6.4097]
[1727388904295,0.12549,156.05,155.99,16.026]
[1727388904525,6.4094,156.02,155.98,6.411]
[1727388904818,6.4091,156.03,155.98,6.411]
[1727388905005,0.12549,156.02,155.98,6.411]
[1727388905516,0.12549,156.02,155.96,16.0293]
[1727388905517,6.53489,156.02,155.97,6.4114]
[1727388906097,6.53489,156.02,155.99,6.4106]
[1727388906098,0.12549,156.02,155.99,6.4106]
[1727388906407,0.12549,156.03,155.99,6.4106]
[1727388914839,23.4170192,156.09,156.0,16.0251]
[1727388915019,6.4073,156.08,156.03,6.4086]
[1727388915326,6.4074,156.07,156.02,22.4321]
[1727388916399,0.12549,156.06,156.02,22.4321]
[1727388918420,0.12549,156.06,156.03,6.4089]
[1727388921337,6.4087,156.04,155.99,16.0262]
[1727388921834,0.12549,156.04,156.0,6.4102]
[1727388930129,0.12549,156.04,155.96,23.25987229]
[1727388930442,6.4095,156.02,155.97,10.93273956]
[1727388930640,6.4095,156.02,155.98,4.52143956]
[1727388930843,6.4095,156.02,155.98,10.93243956]
[1727388931028,6.4095,156.02,155.98,6.411]
[1727388931231,6.4091,156.03,155.98,10.9328892]
[1727388931530,0.12549,156.02,155.96,23.25987229]
[1727388931734,0.12549,156.02,155.96,16.0294]
[1727388932440,6.4102,156.0,155.96,16.0294]
[1727388933141,6.4102,156.0,155.95,6.4122]
[1727388933142,0.12549,155.98,155.94,13.6550825]
[1727388933347,0.12549,155.98,155.94,6.4127]
[1727388933530,0.12549,155.98,155.93,16.2848192]
[1727388933725,6.53659,155.98,155.94,4.52698507]
[1727388933943,0.12549,155.99,155.94,6.4126]
[1727388934324,0.12549,155.99,155.93,16.2848192]
[1727388934525,0.12549,155.99,155.95,6.4122]
[1727388935240,21.8256,156.03,155.95,16.0298]
[1727388935449,28.2349,156.03,155.98,6.4109]
[1727388935652,6.4095,156.02,155.97,6.4114]
[1727388935953,6.4098,156.01,155.97,6.4114]
[1727388936744,19.27,156.02,155.94,7.23702647]
[1727388936924,19.27,156.02,155.95,6.4122]
[1727388936925,0.12549,156.02,155.95,6.4122]
[1727388937120,28.2349,156.03,155.95,27.87788838]
[1727388937315,6.4095,156.02,155.95,29.16015497]
[1727388937530,6.4095,156.02,155.95,27.87788838]
[1727388938043,6.4095,156.02,155.95,29.16014219]
[1727388938251,6.4106,156.0,155.95,22.4417]
[1727388938440,0.12549,156.02,155.96,6.4117]
[1727388938633,6.4099,156.01,155.96,6.4117]
[1727388939139,6.4102,156.0,155.96,6.4117]
[1727388939338,0.12549,155.99,155.95,16.0298]
[1727388939520,0.12549,156.0,155.96,6.4118]
[1727388940026,6.53579,156.0,155.95,22.442]
[1727388940433,0.12549,156.0,155.95,22.442]
[1727388942526,6.4107,155.99,155.95,16.0298]
[1727388942726,6.4107,155.99,155.94,6.4127]
[1727388943539,0.12549,156.0,155.95,6.4122]
[1727388944430,0.12549,155.98,155.93,0.2523192]
[1727388944749,0.12549,155.98,155.93,6.6652192]
[1727388946027,6.53659,155.98,155.93,6.6652192]
[1727388946233,6.53659,155.98,155.93,0.2523192]
[1727388949062,0.12549,155.95,155.93,0.2523192]
[1727388955254,6.53789,155.95,155.93,0.2523192]
[1727388955973,0.12549,155.95,155.93,0.2523192]
[1727388962475,21.6902,155.99,155.93,0.2523192]
[1727388963046,21.6902,155.99,155.93,12.10040758]
[1727388963260,6.4111,155.98,155.93,12.10040758]
[1727388963860,6.4111,155.98,155.93,0.2523192]
[1727388964070,0.12549,155.97,155.93,0.2523192]
[1727388964455,0.12549,155.98,155.93,12.10040758]
[1727388967548,6.53659,155.98,155.93,12.10040758]
[1727388968056,0.12549,155.98,155.93,12.10040758]
[1727388968353,0.12549,155.96,155.93,0.2523192]
[1727388968757,0.12549,155.94,155.93,0.2523192]
[1727388969072,6.53819,155.94,155.93,0.2523192]
[1727388971777,28.27789,155.94,155.93,0.2523192]
[1727388971968,47.54789,155.94,155.93,0.2523192]
[1727388974559,69.27,155.93,155.88,0.3665741]
[1727388974886,6.54019,155.89,155.88,0.3665741]
[1727388975369,0.12549,155.89,155.88,0.3665741]
[1727388976056,28.1524,155.94,155.88,0.3665741]
[1727388976257,28.1524,155.94,155.89,11.84808838]
[1727388976461,21.7397,155.94,155.89,11.84808838]
[1727388977486,6.4118,155.97,155.91,11.84808838]
[1727388977675,21.7397,155.98,155.89,11.84808838]
[1727388977983,6.4123,155.95,155.89,11.84808838]
[1727388978176,6.412,155.96,155.89,18.26278838]
[1727388978482,6.412,155.96,155.89,11.84808838]
[1727388978867,28.1511,155.98,155.91,11.84808838]
[1727388979063,28.1511,155.98,155.93,11.84808838]